{"text_format":"1","workbook":"xlsx","n_sheets":3,"sheets":["ورقة1","ورقة2","ورقة3"],"not_rendered":{"charts":0,"images":0,"macros":1,"external_links":0,"defined_names":1,"comments":0,"pivot_tables":0},"unopened":[],"bounds":{"document_bytes":16777216,"sheet_cells":100000,"rows_first":2000,"rows_last":500,"rows_between":2000,"halvings":0,"cell_chars":16384,"cell_head_chars":4096},"cells_cut":0,"cells_raw":0,"read":"whole","date_system":"1900"}

{"sheet":"ورقة1","index":0,"n_rows":302,"n_cols":10,"rows_kept":302,"cut":false,"hidden":false,"merged":[[3,9,4,9],[3,4,3,5],[0,0,0,1],[2,0,2,1],[1,0,1,1],[2,2,2,9],[3,0,4,0],[3,1,4,1],[3,2,4,2],[3,3,4,3],[3,6,4,6],[3,8,4,8]]}
[]
[]
[null,null,"مساحات الأرز المخالفة موسم 2019م "]
["م","اسم الحائز الرباعي","رقم الحيازة","القائم بالزراعة في حالة الورثة أو سند قانوني","المساحة المخالفة بالفدان بالارقام",null,"المساحة المخالفة بالحروف",null,"الرقم القومي ","الحوض"]
[null,null,null,null,"ط","ف"]
[1,"و/ سمير عبدالحميد سليمان ",465,null,4,1,{"$f":"Gm_wahdan(E6,1,\"قيراط\",\"قراريط\",\"\",2)","v":"فقط أربع قراريط"},{"$f":"Gm_wahdan(F6,0,\"فدان\",\"فدادين\",\"\",1)","v":"فقط فدان واحد"},26705311200633,"البيومات"]
[2,"و/ متولي عبدالشافي علي ",938,null,5,4,{"$f":"Gm_wahdan(E7,1,\"قيراط\",\"قراريط\",\"\",2)","v":"فقط خمس قراريط"},{"$f":"Gm_wahdan(F7,0,\"فدان\",\"فدادين\",\"\",1)","v":"فقط أربعة فدادين"},26705311200633,"البيومات"]
[3,"رشاد عبدالشافي علي",363,null,9,6,"فقط تسع قراريط","فقط ستة فدادين",26705311200633,"البيومات"]
[4,"بخاطرها عمر السيد حيو",273,null,12,5,"فقط اثنتا عشرة قيراط","فقط خمسة فدادين",26906151300747,"البيومات"]
[5,"عزيزة حسين على عسكر ",590,null,6,5,"فقط ست قراريط","فقط خمسة فدادين",24904281301303,"البيومات"]
[6,"رجب محمد حجازى على ",387,null,4,5,"فقط أربع قراريط","فقط خمسة فدادين",26812261201111,"البيومات"]
[7,"هشام محمد حسين عسكر ",4,null,10,4,"فقط عشر قراريط","فقط أربعة فدادين",27302011301655,"البيومات"]
[8,"حسين محمد حسين عسكر",5,null,6,6,"فقط ست قراريط","فقط ستة فدادين",25804101300435,"البيومات"]
[9,"ياسر فوزى عطيه موسى ",27,null,5,6,"فقط خمس قراريط","فقط ستة فدادين",27103221300471,"البيومات"]
[10,"مصطفى سعيد محمد ابراهيم ",28,null,3,5,"فقط ثلاث قراريط","فقط خمسة فدادين",25404010202335,"البيومات"]
[11,"السيد غنيمى جمعة الحنجرى",247,null,7,4,"فقط سبع قراريط","فقط أربعة فدادين",24706171201595,"البيومات"]
[12,"سكينة محمد حسين على عسكر ",426,null,7,5,"فقط سبع قراريط","فقط خمسة فدادين",26311091300307,"البيومات"]
[13,"حياة محمد محمد عامر ",305,null,7,6,"فقط سبع قراريط","فقط ستة فدادين",25601051303162,"البيومات"]
[14,"صابر حجازى على حسن ",522,null,7,3,"فقط سبع قراريط","فقط ثلاثة فدادين",null,"البيومات"]
[15,"عزة محمد حسام على عسكر ",670,null,18,3,"فقط ثمان عشرة قيراط","فقط ثلاثة فدادين",26807201300605,"البيومات"]
[16,"فاتن محمد حسين على عسكر ",739,null,18,7,"فقط ثمان عشرة قيراط","فقط سبعة فدادين",26207041300525,"البيومات"]
[17,"محمد حجازى على حسن ",863,null,8,2,"فقط ثمان قراريط","فقط فدانان اثنان",23812041200351,"البيومات"]
[18,"موسى عبدالشافى على حسن ",819,null,4,4,"فقط أربع قراريط","فقط أربعة فدادين",26211291203654,"البيومات"]
[19,"و/ نعمة احمد عبدالله شومان ",1007,null,3,3,"فقط ثلاث قراريط","فقط ثلاثة فدادين",null,"البيومات"]
[20,"هوايدا السيد غنيمى جمعه ",1042,null,8,7,"فقط ثمان قراريط","فقط سبعة فدادين",27301241200347,"البيومات"]
[21,"محمد عطيه موسى فراج ",844,null,18,5,"فقط ثمان عشرة قيراط","فقط خمسة فدادين"]
[22,null,null,null,null,7,"","فقط سبعة فدادين"]
[23,null,null,null,null,4,"","فقط أربعة فدادين"]
[24,"و/ احمد طاهر القزعة",215,null,8,1,"فقط ثمان قراريط","فقط فدان واحد",null,"النزازة"]
[25,"احمد متولى عبدالصمد سويلم",207,null,7,2,"فقط سبع قراريط","فقط فدانان اثنان",26512221300733,"النزازة"]
[26,"و/السيدة ابراهيم رمضان ",225,null,6,6,"فقط ست قراريط","فقط ستة فدادين",null,"النزازة"]
[27,"سعيد مصلحى سعيد سليمان ",65,null,8,6,"فقط ثمان قراريط","فقط ستة فدادين",26206091301836,"النزازة"]
[28,"و/السيد على السيد الجحش",179,null,4,4,"فقط أربع قراريط","فقط أربعة فدادين",null,"النزازة"]
[29,"حميدة محمد توفيق ",313,null,7,4,"فقط سبع قراريط","فقط أربعة فدادين",null,"النزازة"]
[30,"رضا محمد عوض الله ابراهيم ",360,null,2,4,"فقط قيراطان اثنتان","فقط أربعة فدادين",27705081300831,"النزازة"]
[31,"سهير عزمى كامل ",415,null,2,6,"فقط قيراطان اثنتان","فقط ستة فدادين",25204121300124,"النزازة"]
[32,"صلاح الدين السيد الجوهرى ",547,null,2,3,"فقط قيراطان اثنتان","فقط ثلاثة فدادين",25802011200552,"النزازة"]
[33,"صبرى محمد حجازى لاشين ",519,null,3,4,"فقط ثلاث قراريط","فقط أربعة فدادين",2612021401184,"النزازة"]
[null,"عبدالله منصور حجازى",563,null,2,2,"فقط قيراطان اثنتان","فقط فدانان اثنان",25206041200351,"النزازة"]
[null,"و/على عبدالمطلب على لاشين ",597,null,2,7,"فقط قيراطان اثنتان","فقط سبعة فدادين",null,"النزازة"]
[null,"عزت محمد على موسى فراج ",622,null,10,1,"فقط عشر قراريط","فقط فدان واحد",25010031600171,"النزازة"]
[null,"و/ علية السيد محمد الجوهرى ",674,null,5,4,"فقط خمس قراريط","فقط أربعة فدادين",null,"النزازة"]
[null,"فاطمة عطيه محمد يونس ",702,null,2,6,"فقط قيراطان اثنتان","فقط ستة فدادين",25607221300366,"النزازة"]
[null,"فتحى محمد السيسى",709,null,3,1,"فقط ثلاث قراريط","فقط فدان واحد",23310101300052,"النزازة"]
[null,"فتحى رمزى مصلحى شريف ",716,null,5,7,"فقط خمس قراريط","فقط سبعة فدادين",25904031300372,"النزازة"]
[null,"فتحية عبدالله محمد فرج ",738,null,4,6,"فقط أربع قراريط","فقط ستة فدادين",25305201300401,"النزازة"]
[null,"كريمة محمد فتحى الجهرى",784,null,5,7,"فقط خمس قراريط","فقط سبعة فدادين",25212131200261,"النزازة"]
[null,"على منصور حجازى ",600,null,12,6,"فقط اثنتا عشرة قيراط","فقط ستة فدادين",26101011201236,"النزازة"]
[null,"محمود حجازى منصور ",922,null,8,null,"فقط ثمان قراريط","",28003291300531,"النزازة"]
[null,"مصطفى فتحى محمد على ",828,null,5,null,"فقط خمس قراريط","",26004151300417,"النزازة"]
[null,"ياسر منصور حجازى ",1076,null,2,null,"فقط قيراطان اثنتان","",27403161300852,"النزازة"]
[null,"ماجده محمد فتحى احمد",1130,null,2,null,"فقط قيراطان اثنتان","",26702191300648,"النزازة"]
[null,"عواطف فتحى احمد الجوهرى",1131,null,2,null,"فقط قيراطان اثنتان","",24711151200286,"النزازة"]
[null,"عبدالله لطفى ابراهيم ",629,null,2,null,"فقط قيراطان اثنتان","",26009031300458,"النزازة"]
[null,"مجدة عبدالجليل عبدالغنى محمد ",951,null,2,null,"فقط قيراطان اثنتان","",26109181301562,"النزازة"]
[null,"ناجح على ابراهيم عبد الكريم",1136,null,4,null,"فقط أربع قراريط","",25906081300333,"النزازة"]
[null,"اشرف محمد عوض الله ابراهيم",79,null,3,null,"فقط ثلاث قراريط","",27404131300838,"النزازة"]
[null,"هيثم السيد عزب لاشين",1222,null,3,null,"فقط ثلاث قراريط","",27710231300791,"النزازة"]
[null,"شيماء السعيد الدمرداش مرقص",1170,null,2,null,"فقط قيراطان اثنتان","",28408061300869,"النزازة"]
[null,"فايز عبدالمنعم شومان ",719,null,4,null,"فقط أربع قراريط","",25607021300396,"النزازة"]
[null,"وصفى فؤاد اسعد جرجس ",1087,null,20,null,"فقط عشرون قيراط","",25810011200431,"النزازة"]
[null,"نصيف عطا الله صالح ",990,null,20,1,"فقط عشرون قيراط","فقط فدان واحد",null,"النزازة"]
[null,"سليمان عطية محمد سليمان",1288,null,5,null,"فقط خمس قراريط","",26005031302293,"النزازة"]
[null,"محمد السيد على السيد الجحش ",833,null,12,null,"فقط اثنتا عشرة قيراط","",25202251300298,"النزازة"]
[null,null,null,null,null,null,"",""]
[null,null,null,null,null,null,"",""]
[null,"ابراهيم عبدالرحمن الشافعي ابراهيم",1307,null,7,null,"فقط سبع قراريط","",26702221300834,"الجزائر"]
[null,"اسلام عبدالرحمن الشافعي ابراهيم",1309,null,7,null,"فقط سبع قراريط","",28711291301176,"الجزائر"]
[null,"سمية عبدالرحمن الشافعي ابراهيم",1311,null,3,null,"فقط ثلاث قراريط","",27004081300582,"الجزائر"]
[null,"كريمة السيد السيد الفضالى ",777,null,8,null,"فقط ثمان قراريط","",24711181300382,"الجزائر"]
[null,"سحر عبدالرحمن الشافعي ابراهيم",1310,null,3,null,{"$f":"Gm_wahdan(E71,1,\"قيراط\",\"قراريط\",\"\",2)","v":"فقط ثلاث قراريط"},{"$f":"Gm_wahdan(F71,0,\"فدان\",\"فدادين\",\"\",1)","v":""},27112011301988,"الجزائر"]
[null,"و/ حامد عبدالجواد عبدالكريم ",337,null,12,null,"فقط اثنتا عشرة قيراط","",25607041300489,"الجزائر"]
[null,"و/احمد محمد حسانين هارون",203,null,20,null,"فقط عشرون قيراط","",25605011300522,"الجزائر"]
[null,"فايز رزق سليمان ",718,null,null,3,"","فقط ثلاثة فدادين",23302012400113,"الجزائر"]
[null,"عزيزة عبدالكريم حسن ",587,null,3,null,"فقط ثلاث قراريط","",null,"الجزائر"]
[null,"امال احمد السيد الديب ",114,null,7,null,"فقط سبع قراريط","",24207291300183,"الجزائر"]
[null,"طارق محمود سامى ابراهيم ",541,null,10,null,"فقط عشر قراريط","",24207291300183,"الجزائر"]
[null,"خالد ابراهيم الدسوقى محمد ",24,null,3,null,"فقط ثلاث قراريط","",26601091300453,"الجزائر"]
[null,"احمد ابراهيم الدسوقى",19,null,2,null,"فقط قيراطان اثنتان","",28407121301197,"الجزائر"]
[null,"محمد ابراهيم الدسوقي",25,null,2,null,"فقط قيراطان اثنتان","",28009271300913,"الجزائر"]
[null,"و/ حسانين محمد حسانين هارون ",328,null,14,null,"فقط أربع عشرة قيراط","",null,"الجزائر"]
[null,"روحية احمد عبدالله شومان ",17,null,7,null,"فقط سبع قراريط","",24602131300221,"الجزائر"]
[null,"فاطمة عبدالناصر عبدالوهاب",1195,null,5,null,"فقط خمس قراريط","",28007061300724,"الجزائر"]
[null,"جمال عبد الناصر عبد الوهاب",1197,null,5,null,"فقط خمس قراريط","",28711291301192,"الجزائر"]
[null,"و /احمد سالم على شرارة ",198,null,3,null,"فقط ثلاث قراريط","",null,"الجزائر"]
[null,"عبداللطيف سالم شرارة ",639,null,9,null,"فقط تسع قراريط","",23108121301515,"الجزائر"]
[null,"الطاف احمد عامر حسن ",99,null,3,null,"فقط ثلاث قراريط","",25403121300364,"الجزائر"]
[null,"هانى محمود محمد عبدالعزيز",37,null,17,null,"فقط سبع عشرة قيراط","",27801171301038,"الجزائر"]
[null,null,null,null,null,null,"",""]
[null,null,null,null,null,null,"",""]
[null,"السيد على جودة غانم",195,null,3,null,"فقط ثلاث قراريط","",23506061300315,"الغفارة"]
[null,"عطيات جوده عبدالمطلب ",614,null,3,null,"فقط ثلاث قراريط","",25006101300504,"الغفارة"]
[null,"فتحى ابراهيم غنيم ",712,null,2,null,"فقط قيراطان اثنتان","",24610011300492,"الغفارة"]
[null,"حاتم فتحي ابراهيم غنيم",1280,null,2,null,"فقط قيراطان اثنتان","",28204241303713,"الغفارة"]
[null,"ابو الفتوح سعد ابراهيم ",157,null,7,null,"فقط سبع قراريط","",25712081300491,"الغفارة"]
[null,"و/السعيد حامد ابراهيم جاب الله",149,null,8,null,"فقط ثمان قراريط","",25002271300431,"الغفارة"]
[null,"صبرى ابراهيم بيومى ",549,null,12,null,"فقط اثنتا عشرة قيراط","",25707181300397,"الغفارة"]
[null,"شوقى ابراهيم بيومى ",494,null,10,null,"فقط عشر قراريط","",26702191300613,"الغفارة"]
[null,"و/ جابرابراهيم خلف ",297,null,12,1,"فقط اثنتا عشرة قيراط","فقط فدان واحد",null,"الغفارة"]
[null,"محمد ابراهيم متولي الغمراوي",null,null,3,null,"فقط ثلاث قراريط","",270006211300434,"الغفارة"]
[null,"سهير عبدالمطلب عبدالقادر ",454,null,null,1,"","فقط فدان واحد",25411011303182,"الغفارة"]
[null,"هانم وهبى امين ",1053,null,5,null,"فقط خمس قراريط","",24401201300482,"الغفارة"]
[null,"صابرين محمد عطيه ابراهيم",1229,null,10,1,"فقط عشر قراريط","فقط فدان واحد",27501111301086,"الغفارة"]
[null,"عبدالمطلب عبدالقادر السمان ",642,null,12,1,"فقط اثنتا عشرة قيراط","فقط فدان واحد",null,"الغفارة"]
[null,"الجمعية الخيرية الاسلامية ",238,null,5,null,"فقط خمس قراريط","",null,"الغفارة"]
[null,"و/ سيد احمد محمد عمارة ",458,null,18,null,"فقط ثمان عشرة قيراط","",null,"الغفارة"]
[null,null,null,null,null,null,"",""]
[null,null,null,null,null,null,"",""]
[null,"نظاك الشحات احمد عطيه ",999,null,14,null,"فقط أربع عشرة قيراط","",26102051302988,"العمدة 2"]
[null,"مى سعيد الشحات احمد عطيه ",955,null,7,null,"فقط سبع قراريط","",28409161301141,"العمدة 2"]
[null,"ايمن فاروق السيد السيد فضل ",244,null,10,null,"فقط عشر قراريط","",27606131300619,"العمدة 2"]
[null,"رياض محمد رياض فضل ",367,null,5,null,"فقط خمس قراريط","",28101241306611,"العمدة 2"]
[null,"صبرى عبدالهادى عبدالعزيز ",516,null,7,null,"فقط سبع قراريط","",26312081201871,"العمدة 2"]
[null,"نبوية عبدالرحمن حسن ",987,null,7,null,"فقط سبع قراريط","",24402291300164,"العمدة 2"]
[null,"محمود عبدالجليل محمود عطيه ",82,null,2,null,"فقط قيراطان اثنتان","",27611151300678,"العمدة 2"]
[null,"خالد عبدالجليل محمود عطيه سليمان ",81,null,2,null,"فقط قيراطان اثنتان","",27302221301151,"العمدة 2"]
[null,"حمده متولى عبدالعزيز عبدالرحيم",345,null,2,null,"فقط قيراطان اثنتان","",26407071201628,"العمدة 2"]
[null,"عبدالرحمن جوده الجزار ",633,null,16,null,"فقط ست عشرة قيراط","",24310151300391,"العمدة 2"]
[null,"معوض رفاعى الجزار ",940,null,18,null,"فقط ثمان عشرة قيراط","",null,"العمدة 2"]
[null,"السيد مصطفى هلال على",236,null,3,null,"فقط ثلاث قراريط","",27505181301416,"العمدة 2"]
[null,"محمد مصطفى هلال",97,null,3,null,"فقط ثلاث قراريط","",28205181300791,"العمدة 2"]
[null,"فايزة محمد عبدالقوى ابو العزم ",764,null,2,null,"فقط قيراطان اثنتان","",26808271201181,"العمدة 2"]
[null,"جمال ابو الفتوح احمد فضل ",293,null,7,null,"فقط سبع قراريط","",25903261300316,"العمدة 2"]
[null,"محمد ابو الفتوح احمد فضل ",892,null,18,null,"فقط ثمان عشرة قيراط","",27201141300579,"العمدة 2"]
[null,"جمال فاروق السيد فضل ",302,null,6,null,"فقط ست قراريط","",26110181202473,"العمدة 2"]
[null,"سعيدة ابو الفتوح احمد ",453,null,2,null,"فقط قيراطان اثنتان","",null,"العمدة 2"]
[null,"نجاح محمد رياض فضل ",992,null,8,null,"فقط ثمان قراريط","",26906221200966,"العمدة 2"]
[null,"نجاة محمد رياض فضل ",993,null,8,null,"فقط ثمان قراريط","",26603261201067,"العمدة 2"]
[null,"الهادى موسى فضل السيد ",222,null,18,null,"فقط ثمان عشرة قيراط","",25608171300471,"العمدة 2"]
[null,"و/السيد عبدالفتاح عشماوى",178,null,6,null,"فقط ست قراريط","",null,"العمدة 2"]
[null,"ابراهيم ابراهيم غنيم عبدالرحيم",169,null,6,null,"فقط ست قراريط","",24706071300456,"العمدة 2"]
[null,"محمد كمال السيد فضل",1161,null,8,null,"فقط ثمان قراريط","",26607171200938,"العمدة 2"]
[null,"السيد كمال السيد فضل",1338,null,8,null,"فقط ثمان قراريط","",26504201201914,"العمدة 2"]
[null,"عبدالعليم كمال السيد فضل ",684,null,8,null,"فقط ثمان قراريط","",27103271300412,"العمدة 2"]
[null,null,null,null,null,null,{"$f":"Gm_wahdan(E135,1,\"قيراط\",\"قراريط\",\"\",2)","v":""},{"$f":"Gm_wahdan(F135,0,\"فدان\",\"فدادين\",\"\",1)","v":""}]
[null,null,null,null,null,null,"",""]
[null,null,null,null,null,null,"",""]
[null,"حفيظة عبدالحميد عبدالبار",312,null,9,null,"فقط تسع قراريط","",27312011301545,"العمدة 1"]
[null,"رزق ميخائيل سليمان ",60,null,4,null,"فقط أربع قراريط","",24902151200359,"العمدة 1"]
[null,"و/ابراهيم مخائيل سليمان ",164,null,3,null,"فقط ثلاث قراريط","",null,"العمدة 1"]
[null,"عاطف عبدالملك رزق ",683,null,3,null,"فقط ثلاث قراريط","",26807221201077,"العمدة 1"]
[null,"موزة يوسف عطا الله يوسف ",51,null,4,null,"فقط أربع قراريط","",26610021201481,"العمدة 1"]
[null,"ميشيل مرقص يوسف ",52,null,7,null,"فقط سبع قراريط","",28703221200736,"العمدة 1"]
[null,"فرحات يوسف عطا الله ",50,null,7,null,"فقط سبع قراريط","",25506011200317,"العمدة 1"]
[null,"انطنيوس عبد الشهيد سلامه",70,null,4,null,"فقط أربع قراريط","",28102051200554,"العمدة 1"]
[null,"مارى منير ابراهيم ",69,null,4,null,"فقط أربع قراريط","",28502101303943,"العمدة 1"]
[null,"فريدة محمود متولى عطيه ",748,null,7,null,"فقط سبع قراريط","",26312091301848,"العمدة 1"]
[null,"سعاد محمود متولى محمد",412,null,10,null,"فقط عشر قراريط","",25801041302949,"العمدة 1"]
[null,"امال عبدالحميد عبدالبارى ",137,null,5,null,"فقط خمس قراريط","",26512201202808,"العمدة 1"]
[null,"نجاة عادل عبدالحميد عبدالبارى ",984,null,4,null,"فقط أربع قراريط","",27609021300787,"العمدة 1"]
[null,"عبدالله عطيه ابو المجد ",649,null,6,null,"فقط ست قراريط","",24910081300451,"العمدة 1"]
[null,"ابراهيم ميخائيل سليمان ",164,null,3,null,"فقط ثلاث قراريط","",27711081200331,"العمدة 1"]
[null,"رزق ميخائيل سليمان ",60,null,10,null,"فقط عشر قراريط","",24902151200359,"العمدة 1"]
[null,"نصر عبدالملك عطيه ",68,null,3,null,"فقط ثلاث قراريط","",25706151200391,"العمدة 1"]
[null,"فاطمة السيد رشيد ",42,null,8,null,"فقط ثمان قراريط","",22404201302045,"العمدة 1"]
[null,"حسنى عبد العزيز عبد المقصود الجمال",1251,null,7,null,"فقط سبع قراريط","",25305081300411,"العمدة 1"]
[null,"محمد النبوى توفيق خفاجة ",83,null,6,null,"فقط ست قراريط","",25012261302031,"العمدة 1"]
[null,"فاطمة السيد احمد بدوى ",761,null,4,null,"فقط أربع قراريط","",26412011301368,"العمدة 1"]
[null,"ثابت عطيه محمد الموافى",47,null,2,null,"فقط قيراطان اثنتان","",28808141301171,"العمدة 1"]
[null,"امينة عبدالمنتصر عيسى",237,null,7,null,"فقط سبع قراريط","",25208221300488,"العمدة 1"]
[null,"و/ عماد عطيه محمد الموافى ",48,null,2,null,"فقط قيراطان اثنتان",null,null,"العمدة 1"]
[null,"احمد عطيه محمد الموافى",46,null,2,null,"فقط قيراطان اثنتان",null,28401251301417,"العمدة 1"]
[null,"حامد عطيه محمد الموافى ",44,null,3,null,"فقط ثلاث قراريط",null,26207011303198,"العمدة 1"]
[null,"ياسر هاشم احمد عبد البارى",1172,null,3,null,"فقط ثلاث قراريط",null,27710121300531,"العمدة 1"]
[null,"السعيد السيد حلبى سليمان ",154,null,3,null,"فقط ثلاث قراريط",null,25507201300233,"العمدة 1"]
[null,"ايمن محمود ابو بكر محمود",251,null,18,null,"فقط ثمان عشرة قيراط",null,27707161300894,"العمدة 1"]
[null,"أسامة جوني يوسف ابراهيم",1268,null,6,null,"فقط ست قراريط",null,27005121301575,"العمدة 1"]
[null,"سهام محمود عبدالرحيم",431,null,2,null,"فقط قيراطان اثنتان",null,27410231300681,"العمدة 1"]
[null,null,null,null,null,null,""]
[null,null,null,null,null,null,""]
[null,null,null,null,null,null,""]
[null,"حسن كامل حسب النبى ",308,null,6,null,"فقط ست قراريط",null,25909151300483,"القصالي"]
[null,"و/جاد محمد سلامه جاد ",283,null,4,null,"فقط أربع قراريط",null,null,"القصالي"]
[null,"حمدى عبدالعاطى السيد ",304,null,5,null,"فقط خمس قراريط",null,25806131300297,"القصالي"]
[null,"محمد عبدالعاطى الزهيرى ",811,null,10,null,"فقط عشر قراريط",null,25209121300495,"القصالي"]
[null,"و/عبدالصادق سلامة جاد ",645,null,12,null,"فقط اثنتا عشرة قيراط",null,null,"القصالي"]
[null,"عبدالنبى كامل حسن ",669,null,20,null,"فقط عشرون قيراط",null,26110151300372,"القصالي"]
[null,"و/جوده عبدالحميد متولى ",300,null,2,null,"فقط قيراطان اثنتان",null,null,"القصالي"]
[null,"السيد عبدالحميد متولى ",176,null,5,null,"فقط خمس قراريط",null,25812011300838,"القصالي"]
[null,"عيد عبدالحميد متولى ",605,null,6,null,"فقط ست قراريط",null,24808211300297,"القصالي"]
[null,"ناهد محمد مصطفى خلف ",1033,null,5,null,"فقط خمس قراريط",null,25909151300483,"القصالي"]
[null,"اسماعيل خليل اسماعيل ",135,null,3,null,"فقط ثلاث قراريط",null,26406171300279,"القصالي"]
[null,"فتحى السيد جاد الجعيدى ",732,null,2,null,"فقط قيراطان اثنتان",null,26412211305074,"القصالي"]
[null,"عبدالحسيب محمد محمد بدوى ",671,null,2,null,"فقط قيراطان اثنتان",null,26611301300848,"القصالي"]
[null,"ايمن محمد عطيه موسى",1252,null,2,null,"فقط قيراطان اثنتان",null,28405151300991,"القصالي"]
[null,"جمال سلامه عطا الله حسن ",40,null,null,1,"",null,25501051200075,"القصالي"]
[null,"عطا لله سلامة عطا الله حبش",58,null,null,1,"",null,26303201202591,"القصالي"]
[null,"مجدى سلامة عطا الله حيش ",55,null,12,null,"فقط اثنتا عشرة قيراط",null,25308031100177,"القصالي"]
[null,"سامح سلامة عطا الله ",59,null,null,1,"",null,26809031200271,"القصالي"]
[null,"دلال سلامة عطا الله ",56,null,12,null,"فقط اثنتا عشرة قيراط",null,25609201200104,"القصالي"]
[null,"هانى سلامة عطا الله حبش ",57,null,null,1,"",null,25910251200093,"القصالي"]
[null,"ناجى هنداوى مصطفى ",1036,null,3,null,"فقط ثلاث قراريط",null,27106091300774,"القصالي"]
[null,null,null,null,null,null,""]
[null,"رمسيس مترى صالح ",377,null,4,null,"فقط أربع قراريط",null,23911111300372,"ام قدم "]
[null,"رحاب السيد ورداني",1110,null,7,null,"فقط سبع قراريط",null,27210011301009,"ام قدم "]
[null,"سعد سلامه سعد ",422,null,null,1,"",null,25411011300698,"ام قدم "]
[null,"ايفلين عطا الله سلامة",89,null,null,1,"",null,24903071300626,"ام قدم "]
[null,"فيكتور مترى صالح ",720,null,8,1,"فقط ثمان قراريط",null,25503051300137,"ام قدم "]
[null,"اسامة جوني يوسف ابراهيم",1268,null,20,null,{"$f":"Gm_wahdan(E199,1,\"قيراط\",\"قراريط\",\"\",2)","v":"فقط عشرون قيراط"},null,null,"ام قدم "]
[null,"أمير جوني يوسف ابراهيم",1267,null,12,1,"فقط اثنتا عشرة قيراط",null,27005121301575,"ام قدم "]
[null,"و/بطرس يوسف ابراهيم ",268,null,10,1,"فقط عشر قراريط",null,null,"ام قدم "]
[null,"محمد الصادق غنايم ",893,null,null,2,"",null,25307231300336,"ام قدم "]
[null,"نعيم عبدالرحمن شومان ",1010,null,4,null,"فقط أربع قراريط",null,25008091300317,"ام قدم "]
[null,"نفيسة محمد كمال بيومى ",1004,null,19,null,"فقط تسع عشرة قيراط",null,25303291300241,"ام قدم "]
[null,"هيام عمر الدمرداش",1199,null,3,null,"فقط ثلاث قراريط",null,27511121300806,"ام قدم "]
[null,"فايز عبدالمنعم عبدالله شومان",719,null,null,1,"",null,25607021300396,"ام قدم "]
[null,"فاطمة على سالم ",704,null,6,null,"فقط ست قراريط",null,null,"ام قدم "]
[null,"ام ابراهيم ابراهيم عبدالنبى",94,null,3,null,"فقط ثلاث قراريط",null,23609061300262,"ام قدم "]
[null,"محمود محمد عمر موسى صبو ",896,null,10,1,"فقط عشر قراريط",null,null,"ام قدم "]
[null,"قدريه عثمان خضر ",259,null,3,null,"فقط ثلاث قراريط",null,26906271200967,"ام قدم "]
[null,"عايدة فتحى فرج محمود شومان ",680,null,2,null,"فقط قيراطان اثنتان",null,26202091300347,"ام قدم "]
[null,"علية فتحى فرج شومان ",681,null,2,null,"فقط قيراطان اثنتان",null,26804231300627,"ام قدم "]
[null,"ميرفت فتحى فرج شومان ",958,null,2,null,"فقط قيراطان اثنتان",null,27202021301128,"ام قدم "]
[null,"او/السيد احمد عبدالمجيد عسكر",180,null,null,1,"",null,null,"ام قدم "]
[null,"سعدية عبدالحميد محمد ",417,null,4,null,"فقط أربع قراريط",null,24510281300287,"ام قدم "]
[null,"امنية عبدالهادى ابراهيم ",145,null,4,null,"فقط أربع قراريط",null,24110061200402,"ام قدم "]
[null,"فرج عبدالمحسن خليفه ",735,null,2,null,"فقط قيراطان اثنتان",null,null,"ام قدم "]
[null,"احمد صابر بندارى",249,null,2,null,"فقط قيراطان اثنتان",null,26507171300415,"ام قدم "]
[null,"محمد عيد عبدالحميد متولى ",970,null,3,null,"فقط ثلاث قراريط",null,26801311300556,"ام قدم "]
[null,"طلعت ابراهيم الدسوقى محمد ",20,null,3,null,"فقط ثلاث قراريط",null,26205211301413,"ام قدم "]
[null,"اشرف ابراهيم الدسوقى محمد",21,null,3,null,"فقط ثلاث قراريط",null,27110231300734,"ام قدم "]
[null,"سامى ابراهيم الدسوقى محمد ",22,null,3,null,"فقط ثلاث قراريط",null,26403011300893,"ام قدم "]
[null,"خالد ابراهيم الدسوقى محمد ",24,null,3,null,"فقط ثلاث قراريط",null,26601011300453,"ام قدم "]
[null,"عزه احمد عبد الله موسى",1227,null,2,null,"فقط قيراطان اثنتان",null,26112041204142,"ام قدم "]
[null,"عطيه سالم عبدالمجيد ",575,null,3,null,"فقط ثلاث قراريط",null,26904031300911,"ام قدم "]
[null,"عزيزة حسين على عسكر",590,null,18,null,"فقط ثمان عشرة قيراط",null,24904281301303,"ام قدم "]
[null,"و/ رمضان سالم عبدالمجيد ",365,null,3,null,"فقط ثلاث قراريط",null,null,"ام قدم "]
[null,"رضا بيومى راغب محمود",1238,null,3,null,"فقط ثلاث قراريط",null,27412021300312,"ام قدم "]
[null,"محمد زكى عبدالمجيد سالم ",870,null,2,null,"فقط قيراطان اثنتان",null,24709051300491,"ام قدم "]
[null,"عزيزة متولى عزب خليل ",77,null,4,null,"فقط أربع قراريط",null,27008051300745,"ام قدم "]
[null,"لطفى السيد محمد ابراهيم البيلى ",787,null,9,null,"فقط تسع قراريط",null,26605011300615,"ام قدم "]
[null,"محمد حامد ابراهيم كعيلة ",878,null,6,null,"فقط ست قراريط",null,2660830130039,"ام قدم "]
[null,"على محمد حسين عمر ",659,null,12,null,"فقط اثنتا عشرة قيراط",null,25001281300378,"ام قدم "]
[null,"اعتماد عزب خليل الجعيدى",100,null,5,null,"فقط خمس قراريط",null,24206041300165,"ام قدم "]
[null,"فرحات محمد عطية الحوفى ",61,null,16,null,"فقط ست عشرة قيراط",null,26304011300275,"ام قدم "]
[null,"محمد ابو الفتوح محمد سويلم ",886,null,15,null,"فقط خمس عشرة قيراط",null,25205071300272,"ام قدم "]
[null,"على اسماعيل على ",611,null,2,null,"فقط قيراطان اثنتان",null,26707181300471,"ام قدم "]
[null,"محمود عبد القادر حامد متولى",1104,null,18,null,"فقط ثمان عشرة قيراط",null,27304031300712,"ام قدم "]
[null,"محمد عبد القادر حامد المهر",1103,null,18,null,"فقط ثمان عشرة قيراط",null,26306271202059,"ام قدم "]
[null,null,null,null,null,null,""]
[null,null,null,null,null,null,""]
[null,null,null,null,null,null,""]
[null,null,null,null,null,null,""]
[null,null,null,null,null,null,""]
[null,null,null,null,null,null,""]
[null,null,null,null,null,null,""]
[null,null,null,null,null,null,""]
[null,null,null,null,null,null,""]
[null,null,null,null,null,null,""]
[null,null,null,null,null,null,""]
[null,null,null,null,null,null,""]
[null,null,null,null,null,null,""]
[null,null,null,null,null,null,""]
[null,null,null,null,null,null,""]
[null,null,null,null,null,null,""]
[null,null,null,null,null,null,""]
[null,null,null,null,null,null,""]
[null,null,null,null,null,null,""]
[null,null,null,null,null,null,""]
[null,null,null,null,null,null,""]
[null,null,null,null,null,null,""]
[null,null,null,null,null,null,""]
[null,null,null,null,null,null,{"$f":"Gm_wahdan(E263,1,\"قيراط\",\"قراريط\",\"\",2)","v":""}]
[null,null,null,null,null,null,""]
[null,null,null,null,null,null,""]
[null,null,null,null,null,null,""]
[null,null,null,null,null,null,""]
[null,null,null,null,null,null,""]
[null,null,null,null,null,null,""]
[null,null,null,null,null,null,""]
[null,null,null,null,null,null,""]
[null,null,null,null,null,null,""]
[null,null,null,null,null,null,""]
[null,null,null,null,null,null,""]
[null,null,null,null,null,null,""]
[null,null,null,null,null,null,""]
[null,null,null,null,null,null,""]
[null,null,null,null,null,null,""]
[null,null,null,null,null,null,""]
[null,null,null,null,null,null,""]
[null,null,null,null,null,null,""]
[null,null,null,null,null,null,""]
[null,null,null,null,null,null,""]
[null,null,null,null,null,null,""]
[null,null,null,null,null,null,""]
[null,null,null,null,null,null,""]
[null,null,null,null,null,null,""]
[null,null,null,null,null,null,""]
[null,null,null,null,null,null,""]
[null,null,null,null,null,null,""]
[null,null,null,null,null,null,""]
[null,null,null,null,null,null,""]
[null,null,null,null,null,null,""]
[null,null,null,null,null,null,""]
[null,null,null,null,null,null,""]
[null,null,null,null,null,null,""]
[null,null,null,null,null,null,""]
[null,null,null,null,null,null,""]
[null,null,null,null,null,null,""]
[null,null,null,null,null,null,""]
[null,null,null,null,null,null,""]
[null,null,null,null,null,null,""]

{"sheet":"ورقة2","index":1,"n_rows":0,"n_cols":0,"rows_kept":0,"cut":false,"hidden":false,"merged":[]}

{"sheet":"ورقة3","index":2,"n_rows":0,"n_cols":0,"rows_kept":0,"cut":false,"hidden":false,"merged":[]}